[Event "SS Manhem  - SS Manhem II, Div 1 January 2020"]
[Site "Vegagatan 20, Gothenburg, Sweden"]
[Date "2020.01.12"]
[Round "1.6"]
[White "Bengtsson, Jonas"]
[Black "Lennerstad, Allan"]
[Result "1-0"]
[TimeControl "90 minutes for 40 moves + 30 minutes for the rest of the game + 30 seconds per move from move one."]
[WhiteFideId "1715135"]
[BlackFideId "1723774"]
[WhiteElo "2097"]
[BlackElo "1951"]

1. d4 {[%clk 01:30:55]} {[%emt 00:00:04]} Nf6 {[%clk 01:23:58]} {[%emt
00:07:02]} 2. c4 {[%clk 01:31:17]} {[%emt 00:00:07]} e6 {[%clk 01:24:13]}
{[%emt 00:00:17]} 3. Nc3 {[%clk 01:31:41]} {[%emt 00:00:06]} Bb4 {[%clk
01:24:34]} {[%emt 00:00:09]} 4. e3 {[%clk 01:32:05]} {[%emt 00:00:06]} b6
{[%clk 01:24:34]} {[%emt 00:00:30]} 5. Bd3 {[%clk 01:32:08]} {[%emt 00:00:26]}
Bb7 {[%clk 01:24:55]} {[%emt 00:00:09]} 6. Nf3 {[%clk 01:32:34]} {[%emt
00:00:05]} Ne4 {[%clk 01:23:49]} {[%emt 00:01:36]} 7. O-O {[%clk 01:32:26]}
{[%emt 00:00:37]} Bxc3 {[%clk 01:24:06]} {[%emt 00:00:13]} 8. bxc3 {[%clk
01:32:50]} {[%emt 00:00:06]} f5 {[%clk 01:24:33]} {[%emt 00:00:04]} 9. Ne1
{[%clk 01:32:33]} {[%emt 00:00:47]} O-O {[%clk 01:19:30]} {[%emt 00:05:32]} 10.
f3 {[%clk 01:32:54]} {[%emt 00:00:09]} Nf6 {[%clk 01:19:09]} {[%emt 00:00:51]}
11. Qe2 {[%clk 01:33:03]} {[%emt 00:00:21]} Nc6 {[%clk 01:13:12]} {[%emt
00:06:27]} 12. e4 {[%clk 01:29:39]} {[%emt 00:03:53]} fxe4 {[%clk 01:12:49]}
{[%emt 00:00:53]} 13. fxe4 {[%clk 01:30:03]} {[%emt 00:00:06]} e5 {[%clk
01:12:58]} {[%emt 00:00:21]} 14. Nf3 {[%clk 01:29:50]} {[%emt 00:00:43]} Qe7
{[%clk 01:09:00]} {[%emt 00:04:28]} 15. Bg5 {[%clk 01:22:32]} {[%emt 00:07:48]}
Rae8 {[%clk 01:04:13]} {[%emt 00:05:16]} 16. Rae1 {[%clk 01:22:46]} {[%emt
00:00:16]} Qd6 {[%clk 00:59:46]} {[%emt 00:04:57]} 17. Qb2 {[%clk 01:12:03]}
{[%emt 00:11:13]} Nh5 {[%clk 00:54:16]} {[%emt 00:06:01]} 18. c5 {[%clk
01:07:57]} {[%emt 00:04:35]} Qg6 {[%clk 00:54:20]} {[%emt 00:00:26]} 19. cxb6
{[%clk 01:03:06]} {[%emt 00:05:21]} axb6 {[%clk 00:54:27]} {[%emt 00:00:23]} 20.
Qd2 {[%clk 00:48:32]} {[%emt 00:15:03]} h6 {[%clk 00:46:10]} {[%emt 00:08:48]}
21. Be3 {[%clk 00:46:58]} {[%emt 00:02:03]} Nf4 {[%clk 00:38:04]} {[%emt
00:08:36]} 22. Bxf4 {[%clk 00:39:34]} {[%emt 00:07:54]} exf4 {[%clk 00:37:35]}
{[%emt 00:01:00]} 23. e5 {[%clk 00:34:54]} {[%emt 00:05:09]} Qh5 {[%clk
00:36:23]} {[%emt 00:01:42]} 24. Qc2 {[%clk 00:31:44]} {[%emt 00:03:40]} Re7
{[%clk 00:35:49]} {[%emt 00:01:05]} 25. h3 {[%clk 00:30:21]} {[%emt 00:01:53]}
Qe8 {[%clk 00:35:05]} {[%emt 00:01:14]} 26. Bg6 {[%clk 00:30:26]} {[%emt
00:00:24]} Qa8 {[%clk 00:34:45]} {[%emt 00:00:49]} 27. Nh4 {[%clk 00:28:40]}
{[%emt 00:02:17]} Re6 {[%clk 00:32:10]} {[%emt 00:03:06]} 28. Bh7+ {[%clk
00:28:00]} {[%emt 00:01:09]} Kh8 {[%clk 00:32:38]} {[%emt 00:00:02]} 29. Ng6+
{[%clk 00:28:09]} {[%emt 00:00:21]} Rxg6 {[%clk 00:33:03]} {[%emt 00:00:05]} 30.
Bxg6 {[%clk 00:28:33]} {[%emt 00:00:06]} Ne7 {[%clk 00:32:56]} {[%emt
00:00:37]} 31. Be4 {[%clk 00:28:53]} {[%emt 00:00:10]} Nd5 {[%clk 00:32:39]}
{[%emt 00:00:48]} 32. Rf3 {[%clk 00:18:32]} {[%emt 00:10:51]} g5 {[%clk
00:31:01]} {[%emt 00:02:07]} 33. Qb3 {[%clk 00:16:25]} {[%emt 00:02:37]} Ne7
{[%clk 00:27:36]} {[%emt 00:03:56]} 34. Bxb7 {[%clk 00:16:46]} {[%emt
00:00:09]} Qxb7 {[%clk 00:28:00]} {[%emt 00:00:06]} 35. c4 {[%clk 00:14:50]}
{[%emt 00:02:26]} Nf5 {[%clk 00:22:52]} {[%emt 00:05:38]} 36. Qd3 {[%clk
00:15:09]} {[%emt 00:00:11]} Qc6 {[%clk 00:22:32]} {[%emt 00:00:50]} 37. Kh2
{[%clk 00:12:26]} {[%emt 00:03:13]} Nh4 {[%clk 00:21:47]} {[%emt 00:01:15]} 38.
Rf2 {[%clk 00:12:48]} {[%emt 00:00:08]} Kg7 {[%clk 00:13:53]} {[%emt 00:08:25]}
39. e6 {[%clk 00:07:09]} {[%emt 00:06:09]} dxe6 {[%clk 00:12:45]} {[%emt
00:01:37]} 40. d5 {[%clk 00:07:15]} {[%emt 00:00:24]} Qc5 {[%clk 00:12:55]}
{[%emt 00:00:20]} 41. Rff1 {[%clk 00:04:40]} {[%emt 00:03:04]} f3 {[%clk
00:02:45]} {[%emt 00:10:41]} 42. g3 {[%clk 00:01:20]} {[%emt 00:03:50]} f2
{[%clk 00:02:42]} {[%emt 00:00:34]} 43. Rxe6 {[%clk 00:01:28]} {[%emt
00:00:22]} Rf3 {[%clk 00:29:00]} {[%emt 00:04:12]} 44. Qe4 {[%clk 00:29:42]}
{[%emt 00:02:15]} 1-0

[Event "SS Manhem  - SS Manhem II, Div 1 January 2020"]
[Site "Vegagatan 20, Gothenburg, Sweden"]
[Date "2020.01.12"]
[Round "1.7"]
[White "Olabe Odriozola, Eduardo"]
[Black "Lindholm, Gustav"]
[Result "0-1"]
[TimeControl "90 minutes for 40 moves + 30 minutes for the rest of the game + 30 seconds per move from move one."]
[WhiteFideId "2211980"]
[BlackFideId "1736515"]
[WhiteElo "1948"]
[BlackElo "1921"]

1. e4 {[%clk 01:30:56]} {[%emt 00:00:02]} c5 {[%clk 01:30:55]} {[%emt
00:00:06]} 2. Nc3 {[%clk 01:31:09]} {[%emt 00:00:17]} e6 {[%clk 01:31:15]}
{[%emt 00:00:10]} 3. Bc4 {[%clk 01:31:28]} {[%emt 00:00:11]} a6 {[%clk
01:31:09]} {[%emt 00:00:36]} 4. a4 {[%clk 01:31:56]} {[%emt 00:00:02]} Qc7
{[%clk 01:30:46]} {[%emt 00:00:53]} 5. d3 {[%clk 01:32:03]} {[%emt 00:00:23]}
Nf6 {[%clk 01:30:44]} {[%emt 00:00:31]} 6. f4 {[%clk 01:32:20]} {[%emt
00:00:13]} d6 {[%clk 01:30:12]} {[%emt 00:01:02]} 7. Nge2 {[%clk 01:29:47]}
{[%emt 00:03:04]} Nc6 {[%clk 01:28:40]} {[%emt 00:02:02]} 8. O-O {[%clk
01:29:57]} {[%emt 00:00:20]} Be7 {[%clk 01:25:37]} {[%emt 00:03:33]} 9. f5
{[%clk 01:28:03]} {[%emt 00:02:25]} Nb4 {[%clk 01:13:43]} {[%emt 00:12:23]} 10.
Nf4 {[%clk 01:14:44]} {[%emt 00:13:49]} exf5 {[%clk 00:51:54]} {[%emt
00:22:18]} 11. Nfd5 {[%clk 01:14:23]} {[%emt 00:00:52]} Nbxd5 {[%clk 00:47:32]}
{[%emt 00:04:52]} 12. Nxd5 {[%clk 01:14:34]} {[%emt 00:00:19]} Nxd5 {[%clk
00:46:59]} {[%emt 00:01:02]} 13. Bxd5 {[%clk 01:14:52]} {[%emt 00:00:12]} g6
{[%clk 00:32:53]} {[%emt 00:14:36]} 14. g4 {[%clk 01:06:12]} {[%emt 00:09:10]}
Rg8 {[%clk 00:25:11]} {[%emt 00:08:12]} 15. Kh1 {[%clk 01:01:55]} {[%emt
00:04:47]} Be6 {[%clk 00:21:00]} {[%emt 00:04:41]} 16. gxf5 {[%clk 01:00:22]}
{[%emt 00:02:03]} Bxd5 {[%clk 00:19:38]} {[%emt 00:01:52]} 17. exd5 {[%clk
01:00:50]} {[%emt 00:00:01]} Bf6 {[%clk 00:16:19]} {[%emt 00:03:49]} 18. Qg4
{[%clk 00:57:50]} {[%emt 00:03:29]} Qd7 {[%clk 00:14:16]} {[%emt 00:02:34]} 19.
Re1+ {[%clk 00:55:38]} {[%emt 00:02:41]} Be5 {[%clk 00:14:01]} {[%emt
00:00:45]} 20. c3 {[%clk 00:53:57]} {[%emt 00:02:12]} O-O-O {[%clk 00:13:55]}
{[%emt 00:00:36]} 21. Rf1 {[%clk 00:50:54]} {[%emt 00:03:33]} Kb8 {[%clk
00:12:04]} {[%emt 00:02:21]} 22. Bd2 {[%clk 00:46:49]} {[%emt 00:04:35]} Rde8
{[%clk 00:09:17]} {[%emt 00:03:16]} 23. b4 {[%clk 00:39:04]} {[%emt 00:08:15]}
gxf5 {[%clk 00:07:05]} {[%emt 00:02:42]} 24. Qh5 {[%clk 00:39:13]} {[%emt
00:00:21]} cxb4 {[%clk 00:05:51]} {[%emt 00:01:44]} 25. d4 {[%clk 00:39:27]}
{[%emt 00:00:16]} bxc3 {[%clk 00:05:50]} {[%emt 00:00:31]} 26. Bxc3 {[%clk
00:39:52]} {[%emt 00:00:06]} Bf6 {[%clk 00:05:29]} {[%emt 00:00:50]} 27. Rxf5
{[%clk 00:39:57]} {[%emt 00:00:25]} Qe7 {[%clk 00:04:06]} {[%emt 00:01:53]} 28.
Raf1 {[%clk 00:39:40]} {[%emt 00:00:47]} Qe4+ {[%clk 00:04:07]} {[%emt
00:00:29]} 29. R1f3 {[%clk 00:36:44]} {[%emt 00:03:25]} Bxd4 {[%clk 00:03:49]}
{[%emt 00:00:48]} 30. Bxd4 {[%clk 00:36:12]} {[%emt 00:01:02]} Qxd4 {[%clk
00:04:14]} {[%emt 00:00:05]} 31. Rf1 {[%clk 00:36:21]} {[%emt 00:00:21]} Qd2
{[%clk 00:03:26]} {[%emt 00:01:16]} 32. R5f2 {[%clk 00:36:38]} {[%emt
00:00:15]} Qxf2 {[%clk 00:03:38]} {[%emt 00:00:18]} 0-1

[Event "SS Manhem  - SS Manhem II, Div 1 January 2020"]
[Site "Vegagatan 20, Gothenburg, Sweden"]
[Date "2020.01.12"]
[Round "1.8"]
[White "Eriksson, Mats"]
[Black "Kenani, Dariush"]
[Result "1/2-1/2"]
[TimeControl "90 minutes for 40 moves + 30 minutes for the rest of the game + 30 seconds per move from move one."]
[WhiteFideId "1700936"]
[BlackFideId "1707973"]
[WhiteElo "1938"]
[BlackElo "1917"]

1. e4 {[%clk 01:30:55]} {[%emt 00:00:04]} c5 {[%clk 01:29:58]} {[%emt
00:01:02]} 2. c3 {[%clk 01:31:09]} {[%emt 00:00:16]} d5 {[%clk 01:29:28]}
{[%emt 00:01:00]} 3. exd5 {[%clk 01:31:02]} {[%emt 00:00:37]} Qxd5 {[%clk
01:29:49]} {[%emt 00:00:10]} 4. d4 {[%clk 01:31:10]} {[%emt 00:00:21]} e5
{[%clk 01:30:00]} {[%emt 00:00:19]} 5. Nf3 {[%emt 00:06:54]} cxd4 {[%clk
01:25:40]} {[%emt 00:02:28]} 6. cxd4 {[%clk 01:26:55]} {[%emt 00:00:42]} Nc6
{[%clk 01:24:41]} {[%emt 00:01:29]} 7. Nc3 {[%clk 01:22:03]} {[%emt 00:05:22]}
Bb4 {[%clk 01:24:33]} {[%emt 00:00:38]} 8. Bd2 {[%clk 01:20:37]} {[%emt
00:01:56]} Bxc3 {[%clk 01:23:17]} {[%emt 00:01:47]} 9. Bxc3 {[%clk 01:20:37]}
{[%emt 00:00:26]} Nge7 {[%clk 01:16:11]} {[%emt 00:07:39]} 10. dxe5 {[%clk
01:10:28]} {[%emt 00:10:40]} O-O {[%clk 01:15:18]} {[%emt 00:01:23]} 11. Be2
{[%clk 00:59:40]} {[%emt 00:11:18]} Bf5 {[%clk 01:15:15]} {[%emt 00:00:33]} 12.
O-O {[%clk 00:59:36]} {[%emt 00:00:33]} Rad8 {[%clk 01:14:07]} {[%emt
00:01:37]} 13. Qa4 {[%clk 00:56:08]} {[%emt 00:03:59]} Qe4 {[%clk 01:13:47]}
{[%emt 00:00:50]} 14. Qxe4 {[%clk 00:48:03]} {[%emt 00:08:35]} Bxe4 {[%clk
01:14:08]} {[%emt 00:00:09]} 15. Rfe1 {[%clk 00:48:07]} {[%emt 00:00:26]} Nd5
{[%clk 01:14:13]} {[%emt 00:00:26]} 16. Rac1 {[%clk 00:46:58]} {[%emt
00:01:39]} Nf4 {[%clk 01:13:20]} {[%emt 00:01:23]} 17. Bb5 {[%clk 00:38:33]}
{[%emt 00:08:55]} Bxf3 {[%clk 01:08:18]} {[%emt 00:05:32]} 18. gxf3 {[%clk
00:36:34]} {[%emt 00:02:29]} Nd4 {[%clk 01:05:15]} {[%emt 00:03:33]} 19. Bxd4
{[%clk 00:31:16]} {[%emt 00:05:48]} Rxd4 {[%clk 01:04:05]} {[%emt 00:01:41]} 20.
Rc4 {[%clk 00:30:05]} {[%emt 00:01:40]} Rfd8 {[%clk 00:59:55]} {[%emt
00:04:40]} 21. h4 {[%clk 00:26:17]} {[%emt 00:04:18]} a6 {[%clk 00:56:26]}
{[%emt 00:03:59]} 22. Rxd4 {[%clk 00:23:37]} {[%emt 00:03:11]} Rxd4 {[%clk
00:56:46]} {[%emt 00:00:09]} 23. Rc1 {[%clk 00:23:33]} {[%emt 00:00:34]} h6
{[%clk 00:52:11]} {[%emt 00:05:05]} 24. Bf1 {[%clk 00:21:25]} {[%emt 00:02:38]}
b5 {[%clk 00:46:03]} {[%emt 00:06:36]} 25. Rc6 {[%clk 00:19:56]} {[%emt
00:02:00]} Ra4 {[%clk 00:42:55]} {[%emt 00:03:38]} 26. a3 {[%clk 00:18:28]}
{[%emt 00:01:59]} Kf8 {[%clk 00:42:55]} {[%emt 00:00:30]} 27. Kh2 {[%clk
00:13:50]} {[%emt 00:05:08]} Ng6 {[%clk 00:42:25]} {[%emt 00:01:00]} 28. Rc8+
{[%clk 00:13:11]} {[%emt 00:01:08]} Ke7 {[%clk 00:42:16]} {[%emt 00:00:39]} 29.
Rc7+ {[%clk 00:12:44]} {[%emt 00:00:57]} Kf8 {[%clk 00:39:31]} {[%emt
00:03:15]} 30. Rc8+ {[%clk 00:12:33]} {[%emt 00:00:42]} Ke7 {[%clk 00:39:51]}
{[%emt 00:00:10]} 31. Rc7+ {[%clk 00:12:31]} {[%emt 00:00:32]} Kf8 {[%clk
00:39:55]} {[%emt 00:00:15]} 32. Rc8+ 1/2-1/2